[Event "Titled Tuesday Blitz January 17 Early 2023"]
[White "Larina, Maria"]
[Black "ritanovikova"]
[WhiteFideId "24113182"]
[WhiteElo "1948"]
[BlackElo "2137"]
[Result "0-1"]
[Round "10"]
[TimeControl "180+2"]
[Date "2023.01.17"]
[WhiteClock "0:00:17"]
[BlackClock "0:00:18"]

1. e4 {[%clk 0:03:00]}  d5 {[%clk 0:02:44]} 2. exd5 {[%clk 0:03:00]}  Qxd5 {[%clk 0:02:36]} 3. Nc3 {[%clk 0:03:00]}  Qd6 {[%clk 0:02:36]} 4. g3 {[%clk 0:02:57]}  Nf6 {[%clk 0:02:36]} 5. Bg2 {[%clk 0:02:57]}  a6 {[%clk 0:02:36]} 6. d4 {[%clk 0:02:54]}  Nc6 {[%clk 0:02:35]} 7. Nge2 {[%clk 0:02:54]}  Bf5 {[%clk 0:02:35]} 8. a3 {[%clk 0:02:53]}  e6 {[%clk 0:02:35]} 9. Bf4 {[%clk 0:02:53]}  Qd7 {[%clk 0:02:32]} 10. O-O {[%clk 0:02:50]}  O-O-O {[%clk 0:02:21]} 11. Be3 {[%clk 0:02:40]}  Ng4 {[%clk 0:02:16]} 12. Qd2 {[%clk 0:02:39]}  Nxe3 {[%clk 0:02:16]} 13. fxe3 {[%clk 0:02:39]}  e5 {[%clk 0:02:00]} 14. d5 {[%clk 0:02:31]}  e4 {[%clk 0:02:00]} 15. Rad1 {[%clk 0:02:22]}  Ne5 {[%clk 0:01:54]} 16. Qd4 {[%clk 0:02:16]}  Qd6 {[%clk 0:01:38]} 17. Rxf5 {[%clk 0:02:14]}  f6 {[%clk 0:01:36]} 18. Nxe4 {[%clk 0:02:08]}  Qd7 {[%clk 0:01:36]} 19. Bh3 {[%clk 0:02:05]}  Kb8 {[%clk 0:01:34]} 20. Kg2 {[%clk 0:01:59]}  Qb5 {[%clk 0:01:26]} 21. N2c3 {[%clk 0:01:52]}  Qa5 {[%clk 0:01:26]} 22. Rf2 {[%clk 0:01:19]}  Bc5 {[%clk 0:01:22]} 23. Qd2 {[%clk 0:01:19]}  Nc4 {[%clk 0:01:19]} 24. Qe2 {[%clk 0:01:16]}  Nxb2 {[%clk 0:01:08]} 25. Rd3 {[%clk 0:01:09]}  Bxa3 {[%clk 0:01:03]} 26. Nb1 {[%clk 0:01:02]}  Nxd3 {[%clk 0:00:58]} 27. Qxd3 {[%clk 0:01:00]}  Bb4 {[%clk 0:00:53]} 28. c3 {[%clk 0:01:00]}  Be7 {[%clk 0:00:53]} 29. Nbd2 {[%clk 0:00:59]}  Rxd5 {[%clk 0:00:52]} 30. Qc2 {[%clk 0:00:57]}  Rhd8 {[%clk 0:00:52]} 31. Be6 {[%clk 0:00:54]}  Re5 {[%clk 0:00:49]} 32. Nc4 {[%clk 0:00:49]}  Qb5 {[%clk 0:00:44]} 33. Nxe5 {[%clk 0:00:49]}  Qxe5 {[%clk 0:00:44]} 34. Bc4 {[%clk 0:00:45]}  b5 {[%clk 0:00:43]} 35. Be2 {[%clk 0:00:43]}  f5 {[%clk 0:00:43]} 36. Nd2 {[%clk 0:00:37]}  Qd5+ {[%clk 0:00:43]} 37. Bf3 {[%clk 0:00:36]}  Qe5 {[%clk 0:00:41]} 38. Nb3 {[%clk 0:00:34]}  g5 {[%clk 0:00:40]} 39. h3 {[%clk 0:00:34]}  Qxe3 {[%clk 0:00:35]} 40. Re2 {[%clk 0:00:31]}  Qd3 {[%clk 0:00:33]} 41. Qxd3 {[%clk 0:00:31]}  Rxd3 {[%clk 0:00:33]} 42. Rxe7 {[%clk 0:00:31]}  Rxc3 {[%clk 0:00:34]} 43. Na5 {[%clk 0:00:30]}  Kc8 {[%clk 0:00:31]} 44. Bb7+ {[%clk 0:00:27]}  Kd8 {[%clk 0:00:31]} 45. Rxh7 {[%clk 0:00:28]}  c5 {[%clk 0:00:27]} 46. Bxa6 {[%clk 0:00:27]}  b4 {[%clk 0:00:26]} 47. Nc6+ {[%clk 0:00:23]}  Ke8 {[%clk 0:00:25]} 48. Re7+ {[%clk 0:00:20]}  Kf8 {[%clk 0:00:25]} 49. Re5 {[%clk 0:00:19]}  b3 {[%clk 0:00:24]} 50. Rxf5+ {[%clk 0:00:20]}  Ke8 {[%clk 0:00:21]} 51. Re5+ {[%clk 0:00:20]}  Kd7 {[%clk 0:00:21]} 52. Re2 {[%clk 0:00:20]}  Kxc6 {[%clk 0:00:21]} 53. Bd3 {[%clk 0:00:20]}  Rxd3 {[%clk 0:00:20]} 54. Rb2 {[%clk 0:00:19]}  c4 {[%clk 0:00:20]} 55. h4 {[%clk 0:00:20]}  gxh4 {[%clk 0:00:20]} 56. gxh4 {[%clk 0:00:20]}  Kb5 {[%clk 0:00:20]} 57. h5 {[%clk 0:00:20]}  Kb4 {[%clk 0:00:20]} 58. Rf2 {[%clk 0:00:20]}  c3 {[%clk 0:00:19]} 59. h6 {[%clk 0:00:21]}  Rd8 {[%clk 0:00:19]} 60. h7 {[%clk 0:00:21]}  Rh8 {[%clk 0:00:19]} 61. Rf4+ {[%clk 0:00:21]}  Ka3 {[%clk 0:00:18]} 62. Rf7 {[%clk 0:00:20]}  Kb2 {[%clk 0:00:18]} 63. Rc7 {[%clk 0:00:20]}  c2 {[%clk 0:00:19]} 64. Kf2 {[%clk 0:00:19]}  Rxh7 {[%clk 0:00:19]} 65. Rc3 {[%clk 0:00:17]}  Kxc3 {[%clk 0:00:18]} 0-1


[Site "https://www.chess.com"]

[Event "Titled Tuesday Blitz January 17 Early 2023"]
[White "Necula, Iulian"]
[Black "Vargas, Mauricio"]
[WhiteFideId "1232380"]
[BlackFideId "4404572"]
[WhiteElo "1851"]
[BlackElo "2035"]
[Result "1-0"]
[Round "10"]
[TimeControl "180+2"]
[Date "2023.01.17"]
[WhiteClock "0:01:00"]
[BlackClock "0:00:01"]

1. d4 {[%clk 0:03:00]}  d5 {[%clk 0:03:00]} 2. Nc3 {[%clk 0:03:00]}  c6 {[%clk 0:03:01]} 3. Bf4 {[%clk 0:03:00]}  Bg4 {[%clk 0:02:58]} 4. f3 {[%clk 0:02:59]}  Bf5 {[%clk 0:02:54]} 5. g4 {[%clk 0:02:58]}  Bg6 {[%clk 0:02:54]} 6. h4 {[%clk 0:02:58]}  h5 {[%clk 0:02:51]} 7. g5 {[%clk 0:02:55]}  Bf5 {[%clk 0:02:47]} 8. e3 {[%clk 0:02:54]}  e6 {[%clk 0:02:38]} 9. Bd3 {[%clk 0:02:53]}  Bb4 {[%clk 0:02:22]} 10. Ne2 {[%clk 0:02:49]}  Ne7 {[%clk 0:02:18]} 11. a3 {[%clk 0:02:48]}  Ba5 {[%clk 0:02:18]} 12. b4 {[%clk 0:02:46]}  Bb6 {[%clk 0:02:16]} 13. Ng3 {[%clk 0:02:43]}  Bxd3 {[%clk 0:02:14]} 14. Qxd3 {[%clk 0:02:43]}  g6 {[%clk 0:02:14]} 15. Be5 {[%clk 0:02:40]}  Rg8 {[%clk 0:02:10]} 16. Na4 {[%clk 0:02:30]}  Bc7 {[%clk 0:02:09]} 17. f4 {[%clk 0:02:19]}  b6 {[%clk 0:02:07]} 18. O-O {[%clk 0:02:09]}  Nd7 {[%clk 0:02:04]} 19. c4 {[%clk 0:02:04]}  dxc4 {[%clk 0:02:00]} 20. Qc2 {[%clk 0:02:00]}  b5 {[%clk 0:01:58]} 21. Nc3 {[%clk 0:01:55]}  Nd5 {[%clk 0:01:39]} 22. Nxd5 {[%clk 0:01:50]}  cxd5 {[%clk 0:01:36]} 23. a4 {[%clk 0:01:50]}  bxa4 {[%clk 0:01:33]} 24. Rxa4 {[%clk 0:01:47]}  Bxe5 {[%clk 0:01:17]} 25. fxe5 {[%clk 0:01:45]}  Qb6 {[%clk 0:01:14]} 26. Kh2 {[%clk 0:01:31]}  Nxe5 {[%clk 0:00:57]} 27. dxe5 {[%clk 0:01:28]}  Qxe3 {[%clk 0:00:56]} 28. Qf2 {[%clk 0:01:24]}  Qxf2+ {[%clk 0:00:44]} 29. Rxf2 {[%clk 0:01:25]}  Ke7 {[%clk 0:00:39]} 30. Ne2 {[%clk 0:01:25]}  Rgc8 {[%clk 0:00:30]} 31. Nd4 {[%clk 0:01:24]}  Rc7 {[%clk 0:00:25]} 32. Rc2 {[%clk 0:01:24]}  a6 {[%clk 0:00:19]} 33. b5 {[%clk 0:01:23]}  a5 {[%clk 0:00:10]} 34. Nc6+ {[%clk 0:01:14]}  Ke8 {[%clk 0:00:08]} 35. Nxa5 {[%clk 0:01:13]}  Rca7 {[%clk 0:00:07]} 36. Rca2 {[%clk 0:01:08]}  Kd7 {[%clk 0:00:07]} 37. b6 {[%clk 0:01:08]}  Rb7 {[%clk 0:00:05]} 38. Nxb7 {[%clk 0:01:07]}  Kc6 {[%clk 0:00:04]} 39. Rxa8 {[%clk 0:01:06]}  Kxb7 {[%clk 0:00:03]} 40. Rf8 {[%clk 0:01:02]}  Kxb6 {[%clk 0:00:04]} 41. Rxf7 {[%clk 0:01:02]}  d4 {[%clk 0:00:04]} 42. Rf6 {[%clk 0:00:59]}  d3 {[%clk 0:00:01]} 43. Rxe6+ {[%clk 0:01:00]} 1-0


[Site "https://www.chess.com"]

[Event "Titled Tuesday Blitz January 17 Early 2023"]
[White "Babazada, Khazar"]
[Black "Nakamura, Hikaru"]
[WhiteFideId "13413554"]
[BlackFideId "2016192"]
[WhiteElo "2474"]
[BlackElo "2775"]
[Result "0-1"]
[Round "11"]
[TimeControl "180+2"]
[Date "2023.01.17"]
[WhiteClock "0:00:03"]
[BlackClock "0:00:33"]

1. e4 {[%clk 0:03:00]}  e5 {[%clk 0:02:57]} 2. Nf3 {[%clk 0:03:00]}  Nc6 {[%clk 0:02:56]} 3. Bb5 {[%clk 0:03:01]}  g6 {[%clk 0:02:54]} 4. c3 {[%clk 0:02:59]}  a6 {[%clk 0:02:51]} 5. Ba4 {[%clk 0:02:59]}  Bg7 {[%clk 0:02:51]} 6. d4 {[%clk 0:02:59]}  exd4 {[%clk 0:02:50]} 7. cxd4 {[%clk 0:03:00]}  Nge7 {[%clk 0:02:50]} 8. Nc3 {[%clk 0:02:58]}  b5 {[%clk 0:02:48]} 9. Bc2 {[%clk 0:02:56]}  d6 {[%clk 0:02:48]} 10. h3 {[%clk 0:02:55]}  O-O {[%clk 0:02:48]} 11. O-O {[%clk 0:02:55]}  Na5 {[%clk 0:02:48]} 12. Re1 {[%clk 0:02:52]}  c5 {[%clk 0:02:46]} 13. dxc5 {[%clk 0:02:47]}  dxc5 {[%clk 0:02:46]} 14. e5 {[%clk 0:02:48]}  Qxd1 {[%clk 0:02:37]} 15. Rxd1 {[%clk 0:02:49]}  Nc4 {[%clk 0:02:38]} 16. Ne4 {[%clk 0:02:29]}  Bf5 {[%clk 0:02:33]} 17. g4 {[%clk 0:01:59]}  Bxe4 {[%clk 0:02:19]} 18. Bxe4 {[%clk 0:02:00]}  Ra7 {[%clk 0:02:19]} 19. a4 {[%clk 0:00:58]}  b4 {[%clk 0:02:10]} 20. Rb1 {[%clk 0:00:47]}  Nxe5 {[%clk 0:02:02]} 21. Nxe5 {[%clk 0:00:48]}  Bxe5 {[%clk 0:02:02]} 22. Be3 {[%clk 0:00:47]}  Rc7 {[%clk 0:02:01]} 23. b3 {[%clk 0:00:48]}  a5 {[%clk 0:01:56]} 24. Bd3 {[%clk 0:00:48]}  Nd5 {[%clk 0:01:54]} 25. Rbc1 {[%clk 0:00:46]}  Bf4 {[%clk 0:00:51]} 26. Bxf4 {[%clk 0:00:39]}  Nxf4 {[%clk 0:00:52]} 27. Bf1 {[%clk 0:00:40]}  Re8 {[%clk 0:00:51]} 28. Rc4 {[%clk 0:00:40]}  g5 {[%clk 0:00:51]} 29. h4 {[%clk 0:00:25]}  h6 {[%clk 0:00:51]} 30. hxg5 {[%clk 0:00:25]}  hxg5 {[%clk 0:00:52]} 31. Rc2 {[%clk 0:00:26]}  Kg7 {[%clk 0:00:50]} 32. Bc4 {[%clk 0:00:24]}  Re4 {[%clk 0:00:49]} 33. Rcd2 {[%clk 0:00:20]}  Ng6 {[%clk 0:00:49]} 34. f3 {[%clk 0:00:20]}  Rf4 {[%clk 0:00:49]} 35. Rd5 {[%clk 0:00:12]}  f6 {[%clk 0:00:50]} 36. Rf5 {[%clk 0:00:11]}  Rxf5 {[%clk 0:00:44]} 37. gxf5 {[%clk 0:00:12]}  Ne5 {[%clk 0:00:45]} 38. Be2 {[%clk 0:00:11]}  Rd7 {[%clk 0:00:43]} 39. Rc1 {[%clk 0:00:09]}  Rd5 {[%clk 0:00:43]} 40. Kf2 {[%clk 0:00:08]}  Nf7 {[%clk 0:00:43]} 41. Bc4 {[%clk 0:00:05]}  Rxf5 {[%clk 0:00:43]} 42. Rd1 {[%clk 0:00:05]}  Ne5 {[%clk 0:00:43]} 43. Bd5 {[%clk 0:00:06]}  Nxf3 {[%clk 0:00:33]} 44. Be4 {[%clk 0:00:06]}  Rf4 {[%clk 0:00:33]} 45. Rd7+ {[%clk 0:00:06]}  Kf8 {[%clk 0:00:34]} 46. Ke3 {[%clk 0:00:03]}  Ne5 {[%clk 0:00:33]} 47. Ra7 {[%clk 0:00:03]}  Ng4+ {[%clk 0:00:33]} 0-1


[Site "https://www.chess.com"]

[Event "Titled Tuesday Blitz January 17 Early 2023"]
[White "Predke, Alexandr"]
[Black "Artemiev, Vladislav"]
[WhiteFideId "24107581"]
[BlackFideId "24101605"]
[WhiteElo "2685"]
[BlackElo "2701"]
[Result "0-1"]
[Round "11"]
[TimeControl "180+2"]
[Date "2023.01.17"]
[WhiteClock "0:00:02"]
[BlackClock "0:00:18"]

1. e4 {[%clk 0:01:04]}  c5 {[%clk 0:02:55]} 2. Nf3 {[%clk 0:01:03]}  d6 {[%clk 0:02:55]} 3. Nc3 {[%clk 0:01:02]}  a6 {[%clk 0:02:55]} 4. a4 {[%clk 0:00:59]}  Nc6 {[%clk 0:02:53]} 5. d4 {[%clk 0:00:58]}  cxd4 {[%clk 0:02:53]} 6. Nxd4 {[%clk 0:00:59]}  Nf6 {[%clk 0:02:53]} 7. Be2 {[%clk 0:00:59]}  g6 {[%clk 0:02:53]} 8. O-O {[%clk 0:00:59]}  Bg7 {[%clk 0:02:53]} 9. Be3 {[%clk 0:01:00]}  O-O {[%clk 0:02:54]} 10. Re1 {[%clk 0:01:00]}  Na5 {[%clk 0:02:43]} 11. Nb3 {[%clk 0:00:51]}  Be6 {[%clk 0:02:39]} 12. Nxa5 {[%clk 0:00:48]}  Qxa5 {[%clk 0:02:38]} 13. Qd2 {[%clk 0:00:45]}  Rfc8 {[%clk 0:02:30]} 14. h3 {[%clk 0:00:42]}  Qb4 {[%clk 0:02:25]} 15. Rab1 {[%clk 0:00:31]}  Rc7 {[%clk 0:01:56]} 16. Bd3 {[%clk 0:00:31]}  Rac8 {[%clk 0:01:52]} 17. Red1 {[%clk 0:00:27]}  Bc4 {[%clk 0:01:23]} 18. Qe2 {[%clk 0:00:17]}  e6 {[%clk 0:01:17]} 19. Bd2 {[%clk 0:00:16]}  Qc5 {[%clk 0:01:08]} 20. Bxc4 {[%clk 0:00:13]}  Qxc4 {[%clk 0:01:08]} 21. Qxc4 {[%clk 0:00:14]}  Rxc4 {[%clk 0:01:08]} 22. f3 {[%clk 0:00:14]}  d5 {[%clk 0:01:06]} 23. exd5 {[%clk 0:00:12]}  Nxd5 {[%clk 0:01:06]} 24. Nxd5 {[%clk 0:00:12]}  exd5 {[%clk 0:01:07]} 25. c3 {[%clk 0:00:09]}  d4 {[%clk 0:01:07]} 26. cxd4 {[%clk 0:00:07]}  Bxd4+ {[%clk 0:01:04]} 27. Kf1 {[%clk 0:00:07]}  Rxa4 {[%clk 0:01:04]} 28. Be1 {[%clk 0:00:07]}  Bf6 {[%clk 0:00:57]} 29. Rd6 {[%clk 0:00:05]}  Kg7 {[%clk 0:00:53]} 30. Rb6 {[%clk 0:00:05]}  Rc7 {[%clk 0:00:52]} 31. Rd1 {[%clk 0:00:04]}  Ra2 {[%clk 0:00:48]} 32. Rb1 {[%clk 0:00:04]}  Bd4 {[%clk 0:00:40]} 33. Rb4 {[%clk 0:00:03]}  Be5 {[%clk 0:00:38]} 34. Rb6 {[%clk 0:00:03]}  Ra4 {[%clk 0:00:34]} 35. Ke2 {[%clk 0:00:03]}  Rac4 {[%clk 0:00:31]} 36. Kd3 {[%clk 0:00:02]}  Rc2 {[%clk 0:00:26]} 37. Bc3 {[%clk 0:00:01]}  Bxc3 {[%clk 0:00:25]} 38. bxc3 {[%clk 0:00:02]}  R7xc3+ {[%clk 0:00:25]} 39. Kd4 {[%clk 0:00:02]}  Rc7 {[%clk 0:00:23]} 40. g4 {[%clk 0:00:02]}  R2c3 {[%clk 0:00:20]} 41. Ke4 {[%clk 0:00:02]}  R7c4+ {[%clk 0:00:20]} 42. Kd5 {[%clk 0:00:02]}  Rf4 {[%clk 0:00:18]} 0-1


[Site "https://www.chess.com"]

[Event "Titled Tuesday Blitz January 17 Early 2023"]
[White "Svane, Rasmus"]
[Black "Bernadskiy, Vitaliy"]
[WhiteFideId "4657101"]
[BlackFideId "14100371"]
[WhiteElo "2623"]
[BlackElo "2592"]
[Result "1-0"]
[Round "11"]
[TimeControl "180+2"]
[Date "2023.01.17"]
[WhiteClock "0:00:06"]
[BlackClock "0:00:01"]

1. Nf3 {[%clk 0:03:00]}  Nf6 {[%clk 0:03:00]} 2. g3 {[%clk 0:03:00]}  g6 {[%clk 0:02:59]} 3. Bg2 {[%clk 0:03:00]}  Bg7 {[%clk 0:02:59]} 4. O-O {[%clk 0:03:01]}  O-O {[%clk 0:03:00]} 5. d4 {[%clk 0:03:01]}  d5 {[%clk 0:02:56]} 6. c4 {[%clk 0:03:00]}  Nc6 {[%clk 0:02:56]} 7. cxd5 {[%clk 0:02:56]}  Nxd5 {[%clk 0:02:57]} 8. e4 {[%clk 0:02:55]}  Nb6 {[%clk 0:02:57]} 9. d5 {[%clk 0:02:55]}  Na5 {[%clk 0:02:57]} 10. Qe1 {[%clk 0:02:29]}  Nac4 {[%clk 0:02:55]} 11. Nc3 {[%clk 0:02:27]}  c6 {[%clk 0:02:54]} 12. dxc6 {[%clk 0:02:08]}  bxc6 {[%clk 0:02:55]} 13. Qe2 {[%clk 0:02:08]}  a5 {[%clk 0:02:46]} 14. Rd1 {[%clk 0:02:07]}  Qc7 {[%clk 0:02:45]} 15. Bf4 {[%clk 0:02:07]}  e5 {[%clk 0:02:42]} 16. Bc1 {[%clk 0:01:55]}  Ba6 {[%clk 0:02:42]} 17. b3 {[%clk 0:01:52]}  Na3 {[%clk 0:02:10]} 18. Qb2 {[%clk 0:01:51]}  Nb5 {[%clk 0:02:10]} 19. Be3 {[%clk 0:01:51]}  Rfd8 {[%clk 0:02:04]} 20. Nxb5 {[%clk 0:01:48]}  cxb5 {[%clk 0:02:03]} 21. Rxd8+ {[%clk 0:01:42]}  Rxd8 {[%clk 0:02:00]} 22. Rc1 {[%clk 0:01:42]}  Qd6 {[%clk 0:01:57]} 23. h4 {[%clk 0:01:35]}  h6 {[%clk 0:01:50]} 24. Qc3 {[%clk 0:01:29]}  Rc8 {[%clk 0:01:26]} 25. Qxa5 {[%clk 0:01:28]}  Rxc1+ {[%clk 0:01:24]} 26. Bxc1 {[%clk 0:01:29]}  Bb7 {[%clk 0:01:22]} 27. Ba3 {[%clk 0:01:01]}  Qd1+ {[%clk 0:01:18]} 28. Kh2 {[%clk 0:00:55]}  Bxe4 {[%clk 0:01:13]} 29. Qxb6 {[%clk 0:00:35]}  Bxf3 {[%clk 0:01:12]} 30. Qxb5 {[%clk 0:00:35]}  Kh7 {[%clk 0:00:53]} 31. Bb2 {[%clk 0:00:24]}  Bxg2 {[%clk 0:00:41]} 32. Kxg2 {[%clk 0:00:25]}  Qc2 {[%clk 0:00:38]} 33. Ba1 {[%clk 0:00:22]}  e4 {[%clk 0:00:12]} 34. Bxg7 {[%clk 0:00:20]}  e3 {[%clk 0:00:12]} 35. Qf1 {[%clk 0:00:08]}  Kxg7 {[%clk 0:00:11]} 36. Qe1 {[%clk 0:00:08]}  e2 {[%clk 0:00:10]} 37. f3 {[%clk 0:00:09]}  Qxa2 {[%clk 0:00:07]} 38. b4 {[%clk 0:00:09]}  Qc4 {[%clk 0:00:05]} 39. Kf2 {[%clk 0:00:09]}  g5 {[%clk 0:00:05]} 40. hxg5 {[%clk 0:00:09]}  hxg5 {[%clk 0:00:05]} 41. g4 {[%clk 0:00:09]}  f6 {[%clk 0:00:04]} 42. Qb1 {[%clk 0:00:06]}  Qb5 {[%clk 0:00:01]} 43. Qb2 {[%clk 0:00:06]} 1-0


[Site "https://www.chess.com"]

[Event "Titled Tuesday Blitz January 17 Early 2023"]
[White "Seo, Jung Min"]
[Black "Sadhwani, Raunak"]
[WhiteFideId "1734687"]
[BlackFideId "35093487"]
[WhiteElo "2494"]
[BlackElo "2627"]
[Result "0-1"]
[Round "11"]
[TimeControl "180+2"]
[Date "2023.01.17"]
[WhiteClock "0:00:50"]
[BlackClock "0:00:24"]

1. e4 {[%clk 0:02:59]}  g6 {[%clk 0:03:00]} 2. d4 {[%clk 0:02:58]}  Bg7 {[%clk 0:03:01]} 3. Nc3 {[%clk 0:02:57]}  d6 {[%clk 0:03:02]} 4. Be3 {[%clk 0:02:56]}  c6 {[%clk 0:03:02]} 5. Qd2 {[%clk 0:02:54]}  b5 {[%clk 0:03:02]} 6. h4 {[%clk 0:02:53]}  Nf6 {[%clk 0:03:01]} 7. f3 {[%clk 0:02:53]}  Nbd7 {[%clk 0:02:58]} 8. g4 {[%clk 0:02:52]}  Nb6 {[%clk 0:02:47]} 9. h5 {[%clk 0:02:51]}  b4 {[%clk 0:02:44]} 10. Nd1 {[%clk 0:02:50]}  a5 {[%clk 0:02:45]} 11. Nh3 {[%clk 0:02:45]}  gxh5 {[%clk 0:02:42]} 12. g5 {[%clk 0:02:45]}  Nfd7 {[%clk 0:02:38]} 13. Nf4 {[%clk 0:02:45]}  Rg8 {[%clk 0:02:33]} 14. Rxh5 {[%clk 0:02:42]}  Nf8 {[%clk 0:02:33]} 15. Rh1 {[%clk 0:02:40]}  Qc7 {[%clk 0:02:24]} 16. Nf2 {[%clk 0:02:39]}  Rb8 {[%clk 0:02:13]} 17. Nh5 {[%clk 0:02:36]}  Bh8 {[%clk 0:02:13]} 18. f4 {[%clk 0:02:36]}  a4 {[%clk 0:02:12]} 19. Be2 {[%clk 0:02:24]}  a3 {[%clk 0:02:11]} 20. b3 {[%clk 0:02:24]}  c5 {[%clk 0:02:06]} 21. O-O-O {[%clk 0:02:03]}  Ne6 {[%clk 0:01:54]} 22. dxc5 {[%clk 0:01:58]}  Bc3 {[%clk 0:01:54]} 23. Qd3 {[%clk 0:01:51]}  Nxc5 {[%clk 0:01:54]} 24. Bxc5 {[%clk 0:01:51]}  Qxc5 {[%clk 0:01:55]} 25. Ng4 {[%clk 0:01:48]}  Bb7 {[%clk 0:01:10]} 26. Nh6 {[%clk 0:01:44]}  Rf8 {[%clk 0:01:11]} 27. Rhf1 {[%clk 0:01:31]}  Rc8 {[%clk 0:01:07]} 28. e5 {[%clk 0:01:26]}  Bb2+ {[%clk 0:00:33]} 29. Kd2 {[%clk 0:01:16]}  Bc3+ {[%clk 0:00:32]} 30. Kc1 {[%clk 0:01:16]}  Bb2+ {[%clk 0:00:33]} 31. Kd2 {[%clk 0:01:16]}  Ba6 {[%clk 0:00:24]} 32. Qxa6 {[%clk 0:00:50]}  Qc3# {[%clk 0:00:24]} 0-1


[Site "https://www.chess.com"]

[Event "Titled Tuesday Blitz January 17 Early 2023"]
[White "Zierk, Steven"]
[Black "Harsh Suresh"]
[WhiteFideId "2034255"]
[BlackFideId "45018464"]
[WhiteElo "2488"]
[BlackElo "2298"]
[Result "1-0"]
[Round "11"]
[TimeControl "180+2"]
[Date "2023.01.17"]
[WhiteClock "0:01:54"]
[BlackClock "0:00:23"]

1. e4 {[%clk 0:03:00]}  c6 {[%clk 0:02:56]} 2. d4 {[%clk 0:03:00]}  d5 {[%clk 0:02:56]} 3. exd5 {[%clk 0:03:00]}  cxd5 {[%clk 0:02:56]} 4. Bd3 {[%clk 0:03:01]}  Nc6 {[%clk 0:02:55]} 5. c3 {[%clk 0:03:01]}  Nf6 {[%clk 0:02:55]} 6. Bf4 {[%clk 0:03:01]}  Bg4 {[%clk 0:02:55]} 7. Qb3 {[%clk 0:03:01]}  Qd7 {[%clk 0:02:54]} 8. Nd2 {[%clk 0:03:02]}  e6 {[%clk 0:02:54]} 9. Ngf3 {[%clk 0:03:02]}  Bd6 {[%clk 0:02:53]} 10. Bxd6 {[%clk 0:03:03]}  Qxd6 {[%clk 0:02:54]} 11. O-O {[%clk 0:03:03]}  O-O {[%clk 0:02:51]} 12. Rae1 {[%clk 0:03:04]}  Rab8 {[%clk 0:02:45]} 13. Ne5 {[%clk 0:03:02]}  Bh5 {[%clk 0:02:44]} 14. Qc2 {[%clk 0:03:00]}  Bg6 {[%clk 0:02:44]} 15. Nxg6 {[%clk 0:02:59]}  hxg6 {[%clk 0:02:43]} 16. Nf3 {[%clk 0:02:58]}  b5 {[%clk 0:02:43]} 17. a3 {[%clk 0:02:57]}  a5 {[%clk 0:02:43]} 18. b4 {[%clk 0:02:54]}  axb4 {[%clk 0:02:38]} 19. axb4 {[%clk 0:02:54]}  Rfc8 {[%clk 0:02:38]} 20. Qd2 {[%clk 0:02:43]}  Ne7 {[%clk 0:02:30]} 21. Ne5 {[%clk 0:02:41]}  Qc7 {[%clk 0:02:24]} 22. Re3 {[%clk 0:02:37]}  Qxc3 {[%clk 0:02:17]} 23. Qxc3 {[%clk 0:02:38]}  Rxc3 {[%clk 0:02:12]} 24. Bxg6 {[%clk 0:02:38]}  Rxe3 {[%clk 0:01:49]} 25. Bxf7+ {[%clk 0:02:37]}  Kf8 {[%clk 0:01:27]} 26. fxe3 {[%clk 0:02:38]}  Nf5 {[%clk 0:01:27]} 27. Bxe6 {[%clk 0:02:30]}  Nxe3 {[%clk 0:01:27]} 28. Rf3 {[%clk 0:02:30]}  Nc2 {[%clk 0:01:07]} 29. Nd7+ {[%clk 0:02:27]}  Ke7 {[%clk 0:01:07]} 30. Nxb8 {[%clk 0:02:27]}  Kxe6 {[%clk 0:01:08]} 31. Nc6 {[%clk 0:02:25]}  Ne4 {[%clk 0:01:06]} 32. Rb3 {[%clk 0:02:09]}  Kd6 {[%clk 0:01:03]} 33. Rb2 {[%clk 0:02:09]}  Na3 {[%clk 0:00:50]} 34. Na7 {[%clk 0:02:05]}  Nc3 {[%clk 0:00:44]} 35. Rb3 {[%clk 0:02:05]}  Nab1 {[%clk 0:00:28]} 36. Nxb5+ {[%clk 0:02:02]}  Nxb5 {[%clk 0:00:29]} 37. Rxb1 {[%clk 0:02:02]}  Nxd4 {[%clk 0:00:30]} 38. b5 {[%clk 0:02:00]}  Ne2+ {[%clk 0:00:26]} 39. Kf2 {[%clk 0:01:58]}  Nc3 {[%clk 0:00:27]} 40. Rb3 {[%clk 0:01:58]}  Ne4+ {[%clk 0:00:25]} 41. Ke3 {[%clk 0:01:59]}  Nc5 {[%clk 0:00:24]} 42. Rb1 {[%clk 0:01:58]}  Kc7 {[%clk 0:00:23]} 43. Kd4 {[%clk 0:01:58]}  Na4 {[%clk 0:00:21]} 44. Rb4 {[%clk 0:01:54]}  Nb6 {[%clk 0:00:21]} 45. Kc5 {[%clk 0:01:55]}  g5 {[%clk 0:00:19]} 46. Rg4 {[%clk 0:01:51]}  Nd7+ {[%clk 0:00:19]} 47. Kd4 {[%clk 0:01:52]}  Kd6 {[%clk 0:00:17]} 48. Rxg5 {[%clk 0:01:52]}  Nf6 {[%clk 0:00:17]} 49. Rg6 {[%clk 0:01:52]}  Ke6 {[%clk 0:00:18]} 50. Rxf6+ {[%clk 0:01:52]}  Kxf6 {[%clk 0:00:19]} 51. b6 {[%clk 0:01:53]}  Kf5 {[%clk 0:00:19]} 52. b7 {[%clk 0:01:54]}  Kf4 {[%clk 0:00:20]} 53. b8=Q+ {[%clk 0:01:54]}  Kg4 {[%clk 0:00:21]} 54. Qe5 {[%clk 0:01:51]}  Kh4 {[%clk 0:00:22]} 55. Qg7 {[%clk 0:01:51]}  Kh5 {[%clk 0:00:22]} 56. Ke5 {[%clk 0:01:52]}  d4 {[%clk 0:00:22]} 57. Kf5 {[%clk 0:01:53]}  d3 {[%clk 0:00:23]} 58. Qg5# {[%clk 0:01:54]} 1-0


[Site "https://www.chess.com"]